Workbook

Sheet Saisie
D1: Calcul des coordonnées et altitudes des points relevés au niveau, en station libre vers deux points connus.
L2: ro | S2: Degré
B3: Affaire: | E3: Opérateurs | L3: =IF(C7="Degré",180/PI(),200/PI()) -> 57.29577951 | N3: tol calage | Q3: Gisements d'orientation: | S3: Grade
N4: 0.05 | P4: global: | Q4: =ATAN2(M11-Cn,L11-Ce)*ro -> 100.4029589 | R4: =IF(ro<60,"Degrés","Grades") -> Degrés
B5: Date | E5: Instrument | P5: local: | Q5: =ATAN2(K11-K10,J11-J10)*ro -> -83.45359581 | R5: =IF(ro<60,"Degrés","Grades") -> Degrés
C6: Choisir: | P6: j0: | Q6: =Q4-Q5 -> 183.8565547 | R6: =IF(ro<60,"Degrés","Grades") -> Degrés
B7: Unité | C7: Degré | E7: =IF((Q10^2+Q11^2)^0.5>tolerance,"Mauvais calage !","") -> Mauvais calage ! | J7: Altitude de l' | K7: axe de visée: | L7: =N10+G10/1000 -> 401.939 | M7: =N11+G11/1000 -> 401.764 | N7: =(L7+M7)/2 -> 401.8515 | P7: j0: | Q7: =Q6/ro -> 3.208902231 | R7: Radians
E8: =IF(L8/M8>1.5,"Extrapolation dangereuse !","") -> Extrapolation dangereuse ! | J8: Emprise Levé - Base : | L8: =((MAX(L10:L60)-MIN(L10:L60))^2+(MAX(M10:M60)-MIN(M10:M60))^2)^0.5 -> 71.28977389 | M8: =((L11-Ce)^2+(M11-Cn)^2)^0.5 -> 8.947070631 | P8: Y0: | Q8: =Ce-J10*COS(Q7)-K10*SIN(Q7) -> 2502114.409
A9: Li | B9: Numéro | C9: Direction | D9: Bas | E9: Milieu | F9: Haut | G9: Moy | H9: Fiab | I9: Dist | J9: V | K9: U | L9: Est | M9: Nord | N9: Altitude | P9: X0: | Q9: =Cn+J10*SIN(Q7)-K10*COS(Q7) -> 1201071.961
A10: 1 | B10: 8031 | C10: 115.3 | D10: 1856 | E10: 1940 | F10: 2021 | G10: =IF(F10="","",(D10+E10+F10)/3) -> 1939 | H10: =IF(F10="","",ABS(G10-E10)) -> 1 | I10: =IF(F10="","",ABS(F10-D10)/10) -> 16.5 | J10: =IF(F10="","",I10*SIN(C10/ro)) -> 14.91736207 | K10: =IF(F10="","",I10*COS(C10/ro)) -> -7.051404746 | L10: 2502100 | M10: 1201080 | N10: 400 | O10: < Point fixe 1 | P10: Ecart plani= | Q10: =ABS(((L11-Ce)^2+(M11-Cn)^2)^0.5-((J11-J10)^2+(K11-K10)^2)^0.5) -> 11.08940566 | R10: Mètres
A11: 2 | B11: 8062 | C11: 226.3 | D11: 1680 | E11: 1713 | F11: 1749 | G11: =IF(F11="","",(D11+E11+F11)/3) -> 1714 | H11: 1 | I11: =IF(F11="","",ABS(F11-D11)/10) -> 6.9 | J11: -4.988473307 | K11: -4.767088636 | L11: 2502108.8 | M11: 1201078.384 | N11: 400.05 | O11: < Point fixe 2 | P11: Ecart altim= | Q11: =L7-M7 -> 0.175 | R11: Mètres
A12: 3 | B12: 44 | C12: 290.5 | D12: 1090 | E12: 1140 | F12: 1192 | G12: =IF(F12="","",(D12+E12+F12)/3) -> 1140.666667 | H12: 0.6666666667 | I12: =IF(F12="","",ABS(F12-D12)/10) -> 10.2 | J12: -9.55405633 | K12: 3.572115289 | L12: =IF(F12="","",$Q$8+J12*COS($Q$7)+K12*SIN($Q$7)) -> 2502123.701 | M12: =IF(F12="","",$Q$9-J12*SIN($Q$7)+K12*COS($Q$7)) -> 1201067.755 | N12: =IF(F12="","",$N$7-G12/1000) -> 400.7108333
A13: 4 | B13: 45 | C13: 295.7 | D13: 1172 | E13: 1199 | F13: 1225 | G13: =IF(F13="","",(D13+E13+F13)/3) -> 1198.666667 | H13: 0.3333333333 | I13: =IF(F13="","",ABS(F13-D13)/10) -> 5.3 | J13: -4.775708213 | K13: 2.298393148 | L13: =IF(F13="","",$Q$8+J13*COS($Q$7)+K13*SIN($Q$7)) -> 2502119.02 | M13: =IF(F13="","",$Q$9-J13*SIN($Q$7)+K13*COS($Q$7)) -> 1201069.347 | N13: =IF(F13="","",$N$7-G13/1000) -> 400.6528333 | P13: 1) Introduire l'unité de mesure
A14: 5 | B14: 46 | C14: 91.3 | D14: 1385 | E14: 1407 | F14: 1428 | G14: 1406.666667 | H14: 0.3333333333 | I14: 4.3 | J14: 4.29889322 | K14: -0.09755553436 | L14: 2502110.127 | M14: 1201072.348 | N14: 400.4448333 | P14: de la lunette.
A15: 6 | B15: 47 | C15: 96.7 | D15: 1338 | E15: 1382 | F15: 1426 | G15: 1382 | H15: 0 | I15: 8.8 | J15: 8.739901716 | K15: -1.026702486 | L15: 2502105.758 | M15: 1201073.573 | N15: 400.4695
A16: 7 | B16: 48 | C16: 98.5 | D16: 1402 | E16: 1473 | F16: 1548 | G16: =IF(F16="","",(D16+E16+F16)/3) -> 1474.333333 | H16: 1.333333333 | I16: =IF(F16="","",ABS(F16-D16)/10) -> 14.6 | J16: =IF(F16="","",I16*SIN(C16/ro)) -> 14.43963161 | K16: =IF(F16="","",I16*COS(C16/ro)) -> -2.158017402 | L16: =IF(F16="","",$Q$8+J16*COS($Q$7)+K16*SIN($Q$7)) -> 2502100.148 | M16: =IF(F16="","",$Q$9-J16*SIN($Q$7)+K16*COS($Q$7)) -> 1201075.086 | N16: =IF(F16="","",$N$7-G16/1000) -> 400.3771667 | P16: 2) Saisir les mesures de chaque point dans
A17: 8 | B17: 49 | C17: 100 | D17: 1404 | E17: 1502 | F17: 1600 | G17: 1502 | H17: 0 | I17: 19.6 | J17: 19.30223196 | K17: -3.403504282 | L17: 2502095.38 | M17: 1201076.655 | N17: 400.3495 | P17: les cellules blanches (pas de lignes vides).
A18: 9 | B18: 50 | C18: 100.5 | D18: 1375 | E18: 1498 | F18: 1618 | G18: 1497 | H18: 1 | I18: 24.3 | J18: 23.89309425 | K18: -4.428323269 | L18: 2502090.868 | M18: 1201077.987 | N18: 400.3545
A19: 10 | B19: 51 | C19: 101 | D19: 1370 | E19: 1510 | F19: 1650 | G19: 1510 | H19: 0 | I19: 28 | J19: 27.48556114 | K19: -5.342651871 | L19: 2502087.345 | M19: 1201079.14 | N19: 400.3415 | P19: 3) Vérifier les écarts affichés.
A20: 11 | B20: 52 | C20: 103 | D20: 1538 | E20: 1670 | F20: 1802 | G20: 1670 | H20: 0 | I20: 26.4 | J20: 25.72336971 | K20: -5.938707835 | L20: 2502089.144 | M20: 1201079.617 | N20: 400.1815 | P20: L'écart total ne doit pas dépasser
A21: 12 | B21: 53 | C21: 121 | D21: 2045 | E21: 2182 | F21: 2320 | G21: 2182.333333 | H21: 0.3333333333 | I21: 27.5 | J21: 23.57210077 | K21: -14.16354706 | L21: 2502091.843 | M21: 1201087.678 | N21: 399.6691667 | P21: la tolérance.
A22: 13 | B22: 54 | C22: 106.7 | D22: 1512 | E22: 1546 | F22: 1582 | G22: 1546.666667 | H22: =IF(F22="","",ABS(G22-E22)) -> 0.6666666667 | I22: 7 | J22: 6.704757464 | K22: -2.011523639 | L22: 2502107.855 | M22: 1201074.419 | N22: 400.3048333
A23: 14 | B23: 55 | C23: 106.5 | D23: 1846 | E23: 2000 | F23: 2150 | G23: 1998.666667 | H23: 1.333333333 | I23: 30.4 | J23: 29.14811994 | K23: -8.634066479 | L23: 2502085.908 | M23: 1201082.536 | N23: 399.8528333 | P23: 4) Vérifier que la colonne rouge a bien entièrement
A24: 15 | B24: 56 | C24: 114.3 | D24: 2050 | E24: 2210 | F24: 2365 | G24: 2208.333333 | H24: 1.666666667 | I24: 31.5 | J24: 28.70920321 | K24: -12.9627023 | L24: 2502086.637 | M24: 1201086.826 | N24: 399.6431667 | P24: disparu (fiabilité de tous les points). Dans le cas
A25: 16 | B25: 57 | C25: 119.5 | D25: 2090 | E25: 2250 | F25: 2410 | G25: 2250 | H25: 0 | I25: 32 | J25: 27.85138227 | K25: -15.75755392 | L25: 2502087.681 | M25: 1201089.556 | N25: 399.6015 | P25: contraire, vérifier la saisie du point signalé, puis,
A26: 17 | B26: 58 | C26: 152 | D26: 1830 | E26: 1870 | F26: 1912 | G26: 1870.666667 | H26: 0.6666666667 | I26: 8.2 | J26: 3.849666815 | K26: -7.240170261 | L26: 2502111.055 | M26: 1201079.444 | N26: 399.9808333 | P26: si l'erreur persiste, mettez un point d'interrogation
A27: 18 | B27: 59 | C27: 147 | D27: 2310 | E27: 2410 | F27: 2510 | G27: 2410 | H27: 0 | I27: 20 | J27: 10.8927807 | K27: -16.77341136 | L27: 2502104.669 | M27: 1201089.429 | N27: 399.4415 | P27: à la fin du numéro du point (sans espace). Par
A28: 19 | B28: 60 | C28: 138 | D28: 2352 | E28: 2475 | F28: 2600 | G28: 2475.666667 | H28: 0.6666666667 | I28: 24.8 | J28: 16.59443904 | K28: -18.42999167 | L28: 2502099.092 | M28: 1201091.466 | N28: 399.3758333 | P28: exemple, 6 devient 6?.
A29: 20 | B29: 61 | C29: 241 | D29: 1206 | E29: 1278 | F29: 1348 | G29: 1277.333333 | H29: 0.6666666667 | I29: 14.2 | J29: -12.41959984 | K29: -6.884296607 | L29: 2502127.264 | M29: 1201077.995 | N29: 400.5741667
A30: 21 | P30: 5) Renseigner les coordonnées des
A31: 22 | P31: points de calage (ici en rouge)
A32: 23
A33: 24 | P33: 6) Enregistrez la feuille au format normal.
A34: 25
A35: 26 | P35: 7) Enregistrez la feuille Resultat au format .txt
A36: 27 | P36: si vous envisagez un transfert des points vers un autre logiciel
A37: 28
A38: 29 | P38: 8) Enregistrez les feuilles Autocad… au format .txt
A39: 30 | P39: si vous envisagez un transfert des points vers
A40: 31 | P40: Autocad. Il faudra alors changer l'extension .txt
A41: 32 | P41: en .scr, puis, dans Autocad, faire Outils - Script.
A42: 33 | J42: =IF(F42="","",I42*SIN(C42/ro)) ->  | K42: =IF(F42="","",I42*COS(C42/ro)) -> 
A43: 34
A44: 35 | Q44: paramètre
A45: 36
A46: 37 | Q46: calculé
A47: 38
A48: 39 | Q48: à saisir
A49: 40
A50: 41 | P50: 1234.56 | Q50: Coordonnées connues
A51: 42 | Q51: à introduire
A52: 43
A53: 44 | P53: 8) Analyse
A54: 45 | P54: Extrapolation dangereuse !
A55: 46 | P55: Ceci veut dire que vous dépassez de plus de 1.5x la distance de la base
A56: 47 | P56: Mauvais calage !
A57: 48 | P57: Ceci veut dire que la distance entre pfp n'est pas assez grande
A58: 49
A59: 50
A60: 51 | B60: 22222 | C60: 150 | D60: 1100 | E60: 1400 | F60: 1700 | G60: 1400 | H60: 0 | I60: 60 | J60: 30 | K60: -51.96152423 | L60: 2502087.972 | M60: 1201125.823 | N60: 400.4515
P62: Dans le cas d'une mise en station sur le point
P63: fixe (fil à plomb au trépied), la hauteur d'instrument
P64: doit être mesurée. Bas = milieu = haut = la
P65: "hauteur d'instrument" exprimée en mm.

Sheet Resultat
A1: numéro | B1: coordonnée X | C1: coordonnée Y | D1: altitude | F1: coordonnées points | G1: coordonnées numéros | H1: coordonnées altitudes
A2: =IF(Saisie!F10="","",Saisie!B10) -> 8031 | B2: =IF(Saisie!L10="","",ROUND(Saisie!L10,2)) -> 2502100 | C2: =IF(Saisie!M10="","",ROUND(Saisie!M10,2)) -> 1201080 | D2: =ROUND(Saisie!N10,2) -> 400 | F2: =CONCATENATE(ROUNDDOWN(B2,0),".",RIGHT(TEXT(B2*100,0),2),",",ROUNDDOWN(C2,0),".",RIGHT(TEXT(C2*100,0),2),",",ROUNDDOWN(D2,0),".",RIGHT(TEXT(D2*100,0),2)) -> 2502100.00,1201080.00,400.00 | G2: =CONCATENATE(ROUNDDOWN(B2+0.5,0),".",RIGHT(TEXT((B2+0.5)*100,0),2),",",ROUNDDOWN(C2+0.5,0),".",RIGHT(TEXT((C2+0.5)*100,0),2),",",ROUNDDOWN(D2,0),".",RIGHT(TEXT(D2*100,0),2)) -> 2502100.50,1201080.50,400.00 | H2: =CONCATENATE(ROUNDDOWN(B2+0.5,0),".",RIGHT(TEXT((B2+0.5)*100,0),2),",",ROUNDDOWN(C2-0.5,0),".",RIGHT(TEXT((C2-0.5)*100,0),2),",",ROUNDDOWN(D2,0),".",RIGHT(TEXT(D2*100,0),2)) -> 2502100.50,1201079.50,400.00
A3: =IF(Saisie!F11="","",Saisie!B11) -> 8062 | B3: =IF(Saisie!L11="","",ROUND(Saisie!L11,2)) -> 2502108.8 | C3: =IF(Saisie!M11="","",ROUND(Saisie!M11,2)) -> 1201078.38 | D3: =ROUND(Saisie!N11,2) -> 400.05 | F3: =CONCATENATE(ROUNDDOWN(B3,0),".",RIGHT(TEXT(B3*100,0),2),",",ROUNDDOWN(C3,0),".",RIGHT(TEXT(C3*100,0),2),",",ROUNDDOWN(D3,0),".",RIGHT(TEXT(D3*100,0),2)) -> 2502108.80,1201078.38,400.05 | G3: 2502109.30,1201078.88,400.05 | H3: 2502109.30,1201077.88,400.05
A4: =IF(Saisie!F12="","",Saisie!B12) -> 44 | B4: =IF(Saisie!L12="","",ROUND(Saisie!L12,2)) -> 2502123.7 | C4: =IF(Saisie!M12="","",ROUND(Saisie!M12,2)) -> 1201067.75 | D4: =ROUND(Saisie!N12,2) -> 400.71 | F4: 2502123.70,1201067.75,400.71 | G4: 2502124.20,1201068.25,400.71 | H4: 2502124.20,1201067.25,400.71
A5: =IF(Saisie!F13="","",Saisie!B13) -> 45 | B5: =IF(Saisie!L13="","",ROUND(Saisie!L13,2)) -> 2502119.02 | C5: =IF(Saisie!M13="","",ROUND(Saisie!M13,2)) -> 1201069.35 | D5: =ROUND(Saisie!N13,2) -> 400.65 | F5: 2502119.02,1201069.35,400.65 | G5: 2502119.52,1201069.85,400.65 | H5: 2502119.52,1201068.85,400.65
A6: =IF(Saisie!F14="","",Saisie!B14) -> 46 | B6: =IF(Saisie!L14="","",ROUND(Saisie!L14,2)) -> 2502110.13 | C6: =IF(Saisie!M14="","",ROUND(Saisie!M14,2)) -> 1201072.35 | D6: =ROUND(Saisie!N14,2) -> 400.44 | F6: 2502110.13,1201072.35,400.44 | G6: 2502110.63,1201072.85,400.44 | H6: 2502110.63,1201071.85,400.44
A7: =IF(Saisie!F15="","",Saisie!B15) -> 47 | B7: =IF(Saisie!L15="","",ROUND(Saisie!L15,2)) -> 2502105.76 | C7: =IF(Saisie!M15="","",ROUND(Saisie!M15,2)) -> 1201073.57 | D7: =ROUND(Saisie!N15,2) -> 400.47 | F7: 2502105.76,1201073.57,400.47 | G7: 2502106.26,1201074.07,400.47 | H7: 2502106.26,1201073.07,400.47
A8: =IF(Saisie!F16="","",Saisie!B16) -> 48 | B8: =IF(Saisie!L16="","",Saisie!L16) -> 2502100.148 | C8: =Saisie!M16 -> 1201075.086 | D8: =Saisie!N16 -> 400.3771667 | F8: =CONCATENATE(ROUNDDOWN(B8,0),".",RIGHT(TEXT(B8*100,0),2),",",ROUNDDOWN(C8,0),".",RIGHT(TEXT(C8*100,0),2),",",ROUNDDOWN(D8,0),".",RIGHT(TEXT(D8*100,0),2)) -> 2502100.15,1201075.09,400.38 | G8: =CONCATENATE(ROUNDDOWN(B8+0.5,0),".",RIGHT(TEXT((B8+0.5)*100,0),2),",",ROUNDDOWN(C8+0.5,0),".",RIGHT(TEXT((C8+0.5)*100,0),2),",",ROUNDDOWN(D8,0),".",RIGHT(TEXT(D8*100,0),2)) -> 2502100.65,1201075.59,400.38 | H8: =CONCATENATE(ROUNDDOWN(B8+0.5,0),".",RIGHT(TEXT((B8+0.5)*100,0),2),",",ROUNDDOWN(C8-0.5,0),".",RIGHT(TEXT((C8-0.5)*100,0),2),",",ROUNDDOWN(D8,0),".",RIGHT(TEXT(D8*100,0),2)) -> 2502100.65,1201074.59,400.38
A9: =IF(Saisie!F17="","",Saisie!B17) -> 49 | B9: =IF(Saisie!L17="","",Saisie!L17) -> 2502095.38 | C9: =Saisie!M17 -> 1201076.655 | D9: =Saisie!N17 -> 400.3495 | F9: 2502095.38,1201076.66,400.35 | G9: 2502095.88,1201077.16,400.35 | H9: 2502095.88,1201076.16,400.35
A10: =IF(Saisie!F18="","",Saisie!B18) -> 50 | B10: =IF(Saisie!L18="","",Saisie!L18) -> 2502090.868 | C10: =Saisie!M18 -> 1201077.987 | D10: =Saisie!N18 -> 400.3545 | F10: 2502090.87,1201077.99,400.35 | G10: 2502091.37,1201078.49,400.35 | H10: 2502091.37,1201077.49,400.35
A11: =IF(Saisie!F19="","",Saisie!B19) -> 51 | B11: =IF(Saisie!L19="","",Saisie!L19) -> 2502087.345 | C11: =Saisie!M19 -> 1201079.14 | D11: =Saisie!N19 -> 400.3415 | F11: 2502087.35,1201079.14,400.34 | G11: 2502087.85,1201079.64,400.34 | H11: 2502087.85,1201078.64,400.34
A12: =IF(Saisie!F20="","",Saisie!B20) -> 52 | B12: =IF(Saisie!L20="","",Saisie!L20) -> 2502089.144 | C12: =Saisie!M20 -> 1201079.617 | D12: =Saisie!N20 -> 400.1815 | F12: 2502089.14,1201079.62,400.18 | G12: 2502089.64,1201080.12,400.18 | H12: 2502089.64,1201079.12,400.18
A13: =IF(Saisie!F21="","",Saisie!B21) -> 53 | B13: =IF(Saisie!L21="","",Saisie!L21) -> 2502091.843 | C13: =Saisie!M21 -> 1201087.678 | D13: =Saisie!N21 -> 399.6691667 | F13: 2502091.84,1201087.68,399.67 | G13: 2502092.34,1201088.18,399.67 | H13: 2502092.34,1201087.18,399.67
A14: =IF(Saisie!F22="","",Saisie!B22) -> 54 | B14: =IF(Saisie!L22="","",Saisie!L22) -> 2502107.855 | C14: =Saisie!M22 -> 1201074.419 | D14: =Saisie!N22 -> 400.3048333 | F14: 2502107.86,1201074.42,400.30 | G14: 2502108.36,1201074.92,400.30 | H14: 2502108.36,1201073.92,400.30
A15: =IF(Saisie!F23="","",Saisie!B23) -> 55 | B15: =IF(Saisie!L23="","",Saisie!L23) -> 2502085.908 | C15: =Saisie!M23 -> 1201082.536 | D15: =Saisie!N23 -> 399.8528333 | F15: 2502085.91,1201082.54,399.85 | G15: 2502086.41,1201083.04,399.85 | H15: 2502086.41,1201082.04,399.85
A16: =IF(Saisie!F24="","",Saisie!B24) -> 56 | B16: =IF(Saisie!L24="","",Saisie!L24) -> 2502086.637 | C16: =Saisie!M24 -> 1201086.826 | D16: =Saisie!N24 -> 399.6431667 | F16: 2502086.64,1201086.83,399.64 | G16: 2502087.14,1201087.33,399.64 | H16: 2502087.14,1201086.33,399.64
A17: =IF(Saisie!F25="","",Saisie!B25) -> 57 | B17: =IF(Saisie!L25="","",Saisie!L25) -> 2502087.681 | C17: =Saisie!M25 -> 1201089.556 | D17: =Saisie!N25 -> 399.6015 | F17: 2502087.68,1201089.56,399.60 | G17: 2502088.18,1201090.06,399.60 | H17: 2502088.18,1201089.06,399.60
A18: =IF(Saisie!F26="","",Saisie!B26) -> 58 | B18: =IF(Saisie!L26="","",Saisie!L26) -> 2502111.055 | C18: =Saisie!M26 -> 1201079.444 | D18: =Saisie!N26 -> 399.9808333 | F18: 2502111.06,1201079.44,399.98 | G18: 2502111.56,1201079.94,399.98 | H18: 2502111.56,1201078.94,399.98
A19: =IF(Saisie!F27="","",Saisie!B27) -> 59 | B19: =IF(Saisie!L27="","",Saisie!L27) -> 2502104.669 | C19: =Saisie!M27 -> 1201089.429 | D19: =Saisie!N27 -> 399.4415 | F19: 2502104.67,1201089.43,399.44 | G19: 2502105.17,1201089.93,399.44 | H19: 2502105.17,1201088.93,399.44
A20: =IF(Saisie!F28="","",Saisie!B28) -> 60 | B20: =IF(Saisie!L28="","",Saisie!L28) -> 2502099.092 | C20: =Saisie!M28 -> 1201091.466 | D20: =Saisie!N28 -> 399.3758333 | F20: 2502099.09,1201091.47,399.38 | G20: 2502099.59,1201091.97,399.38 | H20: 2502099.59,1201090.97,399.38
A21: =IF(Saisie!F29="","",Saisie!B29) -> 61 | B21: =IF(Saisie!L29="","",Saisie!L29) -> 2502127.264 | C21: =Saisie!M29 -> 1201077.995 | D21: =Saisie!N29 -> 400.5741667 | F21: 2502127.26,1201077.99,400.57 | G21: 2502127.76,1201078.49,400.57 | H21: 2502127.76,1201077.49,400.57
A22: =IF(Saisie!F30="","",Saisie!B30) ->  | B22: =IF(Saisie!L30="","",Saisie!L30) ->  | C22: =Saisie!M30 ->  | D22: =Saisie!N30 -> 
A23: =IF(Saisie!F31="","",Saisie!B31) ->  | B23: =IF(Saisie!L31="","",Saisie!L31) ->  | C23: =Saisie!M31 ->  | D23: =Saisie!N31 -> 
A24: =IF(Saisie!F32="","",Saisie!B32) ->  | B24: =IF(Saisie!L32="","",Saisie!L32) ->  | C24: =Saisie!M32 ->  | D24: =Saisie!N32 -> 
A25: =IF(Saisie!F33="","",Saisie!B33) ->  | B25: =IF(Saisie!L33="","",Saisie!L33) ->  | C25: =Saisie!M33 ->  | D25: =Saisie!N33 -> 
A26: =IF(Saisie!F34="","",Saisie!B34) ->  | B26: =IF(Saisie!L34="","",Saisie!L34) ->  | C26: =Saisie!M34 ->  | D26: =Saisie!N34 ->  | F26: =CONCATENATE(ROUNDDOWN(B26,0),".",RIGHT(TEXT(B26*100,0),2),",",ROUNDDOWN(C26,0),".",RIGHT(TEXT(C26*100,0),2),",",ROUNDDOWN(D26,0),".",RIGHT(TEXT(D26*100,0),2)) ->  | G26: =CONCATENATE(ROUNDDOWN(B26+0.5,0),".",RIGHT(TEXT((B26+0.5)*100,0),2),",",ROUNDDOWN(C26+0.5,0),".",RIGHT(TEXT((C26+0.5)*100,0),2),",",ROUNDDOWN(D26,0),".",RIGHT(TEXT(D26*100,0),2)) ->  | H26: =CONCATENATE(ROUNDDOWN(B26+0.5,0),".",RIGHT(TEXT((B26+0.5)*100,0),2),",",ROUNDDOWN(C26-0.5,0),".",RIGHT(TEXT((C26-0.5)*100,0),2),",",ROUNDDOWN(D26,0),".",RIGHT(TEXT(D26*100,0),2)) -> 
A27: =IF(Saisie!F35="","",Saisie!B35) ->  | B27: =IF(Saisie!L35="","",Saisie!L35) ->  | C27: =Saisie!M35 ->  | D27: =Saisie!N35 -> 
A28: =IF(Saisie!F36="","",Saisie!B36) ->  | B28: =IF(Saisie!L36="","",Saisie!L36) ->  | C28: =Saisie!M36 ->  | D28: =Saisie!N36 -> 
A29: =IF(Saisie!F37="","",Saisie!B37) ->  | B29: =IF(Saisie!L37="","",Saisie!L37) ->  | C29: =Saisie!M37 ->  | D29: =Saisie!N37 -> 
A30: =IF(Saisie!F38="","",Saisie!B38) ->  | B30: =IF(Saisie!L38="","",Saisie!L38) ->  | C30: =Saisie!M38 ->  | D30: =Saisie!N38 -> 
A31: =IF(Saisie!F39="","",Saisie!B39) ->  | B31: =IF(Saisie!L39="","",Saisie!L39) ->  | C31: =Saisie!M39 ->  | D31: =Saisie!N39 -> 
A32: =IF(Saisie!F40="","",Saisie!B40) ->  | B32: =IF(Saisie!L40="","",Saisie!L40) ->  | C32: =Saisie!M40 ->  | D32: =Saisie!N40 -> 
A33: =IF(Saisie!F41="","",Saisie!B41) ->  | B33: =IF(Saisie!L41="","",Saisie!L41) ->  | C33: =Saisie!M41 ->  | D33: =Saisie!N41 -> 
A34: =IF(Saisie!F42="","",Saisie!B42) ->  | B34: =IF(Saisie!L42="","",Saisie!L42) ->  | C34: =Saisie!M42 ->  | D34: =Saisie!N42 -> 
A35: =IF(Saisie!F43="","",Saisie!B43) ->  | B35: =IF(Saisie!L43="","",Saisie!L43) ->  | C35: =Saisie!M43 ->  | D35: =Saisie!N43 -> 
A36: =IF(Saisie!F44="","",Saisie!B44) ->  | B36: =IF(Saisie!L44="","",Saisie!L44) ->  | C36: =Saisie!M44 ->  | D36: =Saisie!N44 -> 
A37: =IF(Saisie!F45="","",Saisie!B45) ->  | B37: =IF(Saisie!L45="","",Saisie!L45) ->  | C37: =Saisie!M45 ->  | D37: =Saisie!N45 -> 
A38: =IF(Saisie!F46="","",Saisie!B46) ->  | B38: =IF(Saisie!L46="","",Saisie!L46) ->  | C38: =Saisie!M46 ->  | D38: =Saisie!N46 -> 
A39: =IF(Saisie!F47="","",Saisie!B47) ->  | B39: =IF(Saisie!L47="","",Saisie!L47) ->  | C39: =Saisie!M47 ->  | D39: =Saisie!N47 -> 
A40: =IF(Saisie!F48="","",Saisie!B48) ->  | B40: =IF(Saisie!L48="","",Saisie!L48) ->  | C40: =Saisie!M48 ->  | D40: =Saisie!N48 -> 
A41: =IF(Saisie!F49="","",Saisie!B49) ->  | B41: =IF(Saisie!L49="","",Saisie!L49) ->  | C41: =Saisie!M49 ->  | D41: =Saisie!N49 -> 
A42: =IF(Saisie!F50="","",Saisie!B50) ->  | B42: =IF(Saisie!L50="","",Saisie!L50) ->  | C42: =Saisie!M50 ->  | D42: =Saisie!N50 -> 
A43: =IF(Saisie!F51="","",Saisie!B51) ->  | B43: =IF(Saisie!L51="","",Saisie!L51) ->  | C43: =Saisie!M51 ->  | D43: =Saisie!N51 -> 
A44: =IF(Saisie!F52="","",Saisie!B52) ->  | B44: =IF(Saisie!L52="","",Saisie!L52) ->  | C44: =Saisie!M52 ->  | D44: =Saisie!N52 -> 
A45: =IF(Saisie!F53="","",Saisie!B53) ->  | B45: =IF(Saisie!L53="","",Saisie!L53) ->  | C45: =Saisie!M53 ->  | D45: =Saisie!N53 -> 
A46: =IF(Saisie!F54="","",Saisie!B54) ->  | B46: =IF(Saisie!L54="","",Saisie!L54) ->  | C46: =Saisie!M54 ->  | D46: =Saisie!N54 -> 
A47: =IF(Saisie!F55="","",Saisie!B55) ->  | B47: =IF(Saisie!L55="","",Saisie!L55) ->  | C47: =Saisie!M55 ->  | D47: =Saisie!N55 -> 
A48: =IF(Saisie!F56="","",Saisie!B56) ->  | B48: =IF(Saisie!L56="","",Saisie!L56) ->  | C48: =Saisie!M56 ->  | D48: =Saisie!N56 -> 
A49: =IF(Saisie!F57="","",Saisie!B57) ->  | B49: =IF(Saisie!L57="","",Saisie!L57) ->  | C49: =Saisie!M57 ->  | D49: =Saisie!N57 -> 
A50: =IF(Saisie!F58="","",Saisie!B58) ->  | B50: =IF(Saisie!L58="","",Saisie!L58) ->  | C50: =Saisie!M58 ->  | D50: =Saisie!N58 -> 
A51: =IF(Saisie!F59="","",Saisie!B59) ->  | B51: =IF(Saisie!L59="","",Saisie!L59) ->  | C51: =Saisie!M59 ->  | D51: =Saisie!N59 -> 
A52: =IF(Saisie!F60="","",Saisie!B60) -> 22222 | B52: =IF(Saisie!L60="","",Saisie!L60) -> 2502087.972 | C52: =Saisie!M60 -> 1201125.823 | D52: =Saisie!N60 -> 400.4515 | F52: 2502087.97,1201125.82,400.45 | G52: 2502088.47,1201126.32,400.45 | H52: 2502088.47,1201125.32,400.45

Sheet Autocad_Pts
A1: -calque E HEPIA_POINTS | B1: crée le calque HEPIA_POINT et le rend actif | D1: Utilisation
A2: -calque CO 140 HEPIA_POINTS | B2: change la couleur du calque à 140
A3: pdmode 3 | B3: affiche des croix comme symbole de points
A4: pdsize 0.5 | B4: dimensionne les symboles de points à 0.5m
A5: =IF(Resultat!A2="","",CONCATENATE("POINT ",Resultat!F2)) -> POINT 2502100.00,1201080.00,400.00 | B5: insère les points
A6: =IF(Resultat!A3="","",CONCATENATE("POINT ",Resultat!F3)) -> POINT 2502108.80,1201078.38,400.05 | D6: Cette feuille vous permet d'injecter les points dans votre dessin autocad sur le calque POINTS
A7: =IF(Resultat!A4="","",CONCATENATE("POINT ",Resultat!F4)) -> POINT 2502123.70,1201067.75,400.71 | D7: dans votre dessin autocad sur le calque NoPTS
A8: =IF(Resultat!A5="","",CONCATENATE("POINT ",Resultat!F5)) -> POINT 2502119.02,1201069.35,400.65
A9: =IF(Resultat!A6="","",CONCATENATE("POINT ",Resultat!F6)) -> POINT 2502110.13,1201072.35,400.44
A10: =IF(Resultat!A7="","",CONCATENATE("POINT ",Resultat!F7)) -> POINT 2502105.76,1201073.57,400.47 | D10: Pour pouvoir injecter ce résultat dans Autocad, il faut copier les
A11: =IF(Resultat!A8="","",CONCATENATE("POINT ",Resultat!F8)) -> POINT 2502100.15,1201075.09,400.38 | D11: cellules A1 à AN-1, par exemple, dans un bloc note
A12: =IF(Resultat!A9="","",CONCATENATE("POINT ",Resultat!F9)) -> POINT 2502095.38,1201076.66,400.35 | D12: puis enregistrer le fichier avec une extension .scr
A13: =IF(Resultat!A10="","",CONCATENATE("POINT ",Resultat!F10)) -> POINT 2502090.87,1201077.99,400.35 | D13: Exemple: Fichier / Enregister sous / A1_Points.scr
A14: =IF(Resultat!A11="","",CONCATENATE("POINT ",Resultat!F11)) -> POINT 2502087.35,1201079.14,400.34
A15: =IF(Resultat!A12="","",CONCATENATE("POINT ",Resultat!F12)) -> POINT 2502089.14,1201079.62,400.18
A16: =IF(Resultat!A13="","",CONCATENATE("POINT ",Resultat!F13)) -> POINT 2502091.84,1201087.68,399.67 | D16: Dans Autocad,
A17: =IF(Resultat!A14="","",CONCATENATE("POINT ",Resultat!F14)) -> POINT 2502107.86,1201074.42,400.30 | D17: aller dans le menu "Gérer" et cliquer sur "Script"
A18: =IF(Resultat!A15="","",CONCATENATE("POINT ",Resultat!F15)) -> POINT 2502085.91,1201082.54,399.85 | D18: Allez chercher vos fichiers et voila….
A19: =IF(Resultat!A16="","",CONCATENATE("POINT ",Resultat!F16)) -> POINT 2502086.64,1201086.83,399.64 | D19: Si vos point sont invisible double clic molette
A20: =IF(Resultat!A17="","",CONCATENATE("POINT ",Resultat!F17)) -> POINT 2502087.68,1201089.56,399.60 | D20: Si vos point sont minuscules "Début" "Utilitaire",
A21: =IF(Resultat!A18="","",CONCATENATE("POINT ",Resultat!F18)) -> POINT 2502111.06,1201079.44,399.98 | D21: Style de point et modifier la taille 2.5 et la forme +
A22: =IF(Resultat!A19="","",CONCATENATE("POINT ",Resultat!F19)) -> POINT 2502104.67,1201089.43,399.44
A23: =IF(Resultat!A20="","",CONCATENATE("POINT ",Resultat!F20)) -> POINT 2502099.09,1201091.47,399.38
A24: =IF(Resultat!A21="","",CONCATENATE("POINT ",Resultat!F21)) -> POINT 2502127.26,1201077.99,400.57
A25: =IF(Resultat!A22="","",CONCATENATE("POINT ",Resultat!F22)) -> 
A26: =IF(Resultat!A23="","",CONCATENATE("POINT ",Resultat!F23)) -> 
A27: =IF(Resultat!A24="","",CONCATENATE("POINT ",Resultat!F24)) -> 
A28: =IF(Resultat!A25="","",CONCATENATE("POINT ",Resultat!F25)) -> 
A29: =IF(Resultat!A26="","",CONCATENATE("POINT ",Resultat!F26)) -> 
A30: =IF(Resultat!A27="","",CONCATENATE("POINT ",Resultat!F27)) -> 
A31: =IF(Resultat!A28="","",CONCATENATE("POINT ",Resultat!F28)) -> 
A32: =IF(Resultat!A29="","",CONCATENATE("POINT ",Resultat!F29)) -> 
A33: =IF(Resultat!A30="","",CONCATENATE("POINT ",Resultat!F30)) -> 
A34: =IF(Resultat!A31="","",CONCATENATE("POINT ",Resultat!F31)) -> 
A35: =IF(Resultat!A32="","",CONCATENATE("POINT ",Resultat!F32)) -> 
A36: =IF(Resultat!A33="","",CONCATENATE("POINT ",Resultat!F33)) -> 
A37: =IF(Resultat!A34="","",CONCATENATE("POINT ",Resultat!F34)) -> 
A38: =IF(Resultat!A35="","",CONCATENATE("POINT ",Resultat!F35)) -> 
A39: =IF(Resultat!A36="","",CONCATENATE("POINT ",Resultat!F36)) -> 
A40: =IF(Resultat!A37="","",CONCATENATE("POINT ",Resultat!F37)) -> 
A41: =IF(Resultat!A38="","",CONCATENATE("POINT ",Resultat!F38)) -> 
A42: =IF(Resultat!A39="","",CONCATENATE("POINT ",Resultat!F39)) -> 
A43: =IF(Resultat!A40="","",CONCATENATE("POINT ",Resultat!F40)) -> 
A44: =IF(Resultat!A41="","",CONCATENATE("POINT ",Resultat!F41)) -> 
A45: =IF(Resultat!A42="","",CONCATENATE("POINT ",Resultat!F42)) -> 
A46: =IF(Resultat!A43="","",CONCATENATE("POINT ",Resultat!F43)) -> 
A47: =IF(Resultat!A44="","",CONCATENATE("POINT ",Resultat!F44)) -> 
A48: =IF(Resultat!A45="","",CONCATENATE("POINT ",Resultat!F45)) -> 
A49: =IF(Resultat!A46="","",CONCATENATE("POINT ",Resultat!F46)) -> 
A50: =IF(Resultat!A47="","",CONCATENATE("POINT ",Resultat!F47)) -> 
A51: =IF(Resultat!A48="","",CONCATENATE("POINT ",Resultat!F48)) -> 
A52: =IF(Resultat!A49="","",CONCATENATE("POINT ",Resultat!F49)) -> 
A53: =IF(Resultat!A50="","",CONCATENATE("POINT ",Resultat!F50)) -> 
A54: =IF(Resultat!A51="","",CONCATENATE("POINT ",Resultat!F51)) -> 
A55: =IF(Resultat!A52="","",CONCATENATE("POINT ",Resultat!F52)) -> POINT 2502087.97,1201125.82,400.45
A56: -calque ch 0 | B56: rend le calque 0 actif
B57: LAISSER CETTE LIGNE VIDE
A58: zoom et | B58: effectue un zoom étendu
B59: LAISSER CETTE LIGNE VIDE

Sheet Autocad_Num
A1: -calque E HEPIA_NoPts | B1: crée le calque HEPIA_NoPts et le rend actif
A2: -calque CO 7 HEPIA_NoPts | B2: change la couleur du calque à 7 (blanc/noir)
A3: textstyle standard | B3: rend le style de texte Standard actif
A4: =IF(Resultat!A2="","",CONCATENATE("-TEXTE ",Resultat!G2," 0.5 0 ",Resultat!A2)) -> -TEXTE 2502100.50,1201080.50,400.00 0.5 0 8031
A5: =IF(Resultat!A3="","",CONCATENATE("-TEXTE ",Resultat!G3," 0.5 0 ",Resultat!A3)) -> -TEXTE 2502109.30,1201078.88,400.05 0.5 0 8062
A6: =IF(Resultat!A4="","",CONCATENATE("-TEXTE ",Resultat!G4," 0.5 0 ",Resultat!A4)) -> -TEXTE 2502124.20,1201068.25,400.71 0.5 0 44
A7: =IF(Resultat!A5="","",CONCATENATE("-TEXTE ",Resultat!G5," 0.5 0 ",Resultat!A5)) -> -TEXTE 2502119.52,1201069.85,400.65 0.5 0 45
A8: =IF(Resultat!A6="","",CONCATENATE("-TEXTE ",Resultat!G6," 0.5 0 ",Resultat!A6)) -> -TEXTE 2502110.63,1201072.85,400.44 0.5 0 46
A9: =IF(Resultat!A7="","",CONCATENATE("-TEXTE ",Resultat!G7," 0.5 0 ",Resultat!A7)) -> -TEXTE 2502106.26,1201074.07,400.47 0.5 0 47
A10: =IF(Resultat!A8="","",CONCATENATE("-TEXTE ",Resultat!G8," 0.5 0 ",Resultat!A8)) -> -TEXTE 2502100.65,1201075.59,400.38 0.5 0 48
A11: =IF(Resultat!A9="","",CONCATENATE("-TEXTE ",Resultat!G9," 0.5 0 ",Resultat!A9)) -> -TEXTE 2502095.88,1201077.16,400.35 0.5 0 49
A12: =IF(Resultat!A10="","",CONCATENATE("-TEXTE ",Resultat!G10," 0.5 0 ",Resultat!A10)) -> -TEXTE 2502091.37,1201078.49,400.35 0.5 0 50
A13: =IF(Resultat!A11="","",CONCATENATE("-TEXTE ",Resultat!G11," 0.5 0 ",Resultat!A11)) -> -TEXTE 2502087.85,1201079.64,400.34 0.5 0 51
A14: =IF(Resultat!A12="","",CONCATENATE("-TEXTE ",Resultat!G12," 0.5 0 ",Resultat!A12)) -> -TEXTE 2502089.64,1201080.12,400.18 0.5 0 52
A15: =IF(Resultat!A13="","",CONCATENATE("-TEXTE ",Resultat!G13," 0.5 0 ",Resultat!A13)) -> -TEXTE 2502092.34,1201088.18,399.67 0.5 0 53
A16: =IF(Resultat!A14="","",CONCATENATE("-TEXTE ",Resultat!G14," 0.5 0 ",Resultat!A14)) -> -TEXTE 2502108.36,1201074.92,400.30 0.5 0 54
A17: =IF(Resultat!A15="","",CONCATENATE("-TEXTE ",Resultat!G15," 0.5 0 ",Resultat!A15)) -> -TEXTE 2502086.41,1201083.04,399.85 0.5 0 55
A18: =IF(Resultat!A16="","",CONCATENATE("-TEXTE ",Resultat!G16," 0.5 0 ",Resultat!A16)) -> -TEXTE 2502087.14,1201087.33,399.64 0.5 0 56
A19: =IF(Resultat!A17="","",CONCATENATE("-TEXTE ",Resultat!G17," 0.5 0 ",Resultat!A17)) -> -TEXTE 2502088.18,1201090.06,399.60 0.5 0 57
A20: =IF(Resultat!A18="","",CONCATENATE("-TEXTE ",Resultat!G18," 0.5 0 ",Resultat!A18)) -> -TEXTE 2502111.56,1201079.94,399.98 0.5 0 58
A21: =IF(Resultat!A19="","",CONCATENATE("-TEXTE ",Resultat!G19," 0.5 0 ",Resultat!A19)) -> -TEXTE 2502105.17,1201089.93,399.44 0.5 0 59
A22: =IF(Resultat!A20="","",CONCATENATE("-TEXTE ",Resultat!G20," 0.5 0 ",Resultat!A20)) -> -TEXTE 2502099.59,1201091.97,399.38 0.5 0 60
A23: =IF(Resultat!A21="","",CONCATENATE("-TEXTE ",Resultat!G21," 0.5 0 ",Resultat!A21)) -> -TEXTE 2502127.76,1201078.49,400.57 0.5 0 61
A24: =IF(Resultat!A22="","",CONCATENATE("-TEXTE ",Resultat!G22," 0.5 0 ",Resultat!A22)) -> 
A25: =IF(Resultat!A23="","",CONCATENATE("-TEXTE ",Resultat!G23," 0.5 0 ",Resultat!A23)) -> 
A26: =IF(Resultat!A24="","",CONCATENATE("-TEXTE ",Resultat!G24," 0.5 0 ",Resultat!A24)) -> 
A27: =IF(Resultat!A25="","",CONCATENATE("-TEXTE ",Resultat!G25," 0.5 0 ",Resultat!A25)) -> 
A28: =IF(Resultat!A26="","",CONCATENATE("-TEXTE ",Resultat!G26," 0.5 0 ",Resultat!A26)) -> 
A29: =IF(Resultat!A27="","",CONCATENATE("-TEXTE ",Resultat!G27," 0.5 0 ",Resultat!A27)) -> 
A30: =IF(Resultat!A28="","",CONCATENATE("-TEXTE ",Resultat!G28," 0.5 0 ",Resultat!A28)) -> 
A31: =IF(Resultat!A29="","",CONCATENATE("-TEXTE ",Resultat!G29," 0.5 0 ",Resultat!A29)) -> 
A32: =IF(Resultat!A30="","",CONCATENATE("-TEXTE ",Resultat!G30," 0.5 0 ",Resultat!A30)) -> 
A33: =IF(Resultat!A31="","",CONCATENATE("-TEXTE ",Resultat!G31," 0.5 0 ",Resultat!A31)) -> 
A34: =IF(Resultat!A32="","",CONCATENATE("-TEXTE ",Resultat!G32," 0.5 0 ",Resultat!A32)) -> 
A35: =IF(Resultat!A33="","",CONCATENATE("-TEXTE ",Resultat!G33," 0.5 0 ",Resultat!A33)) -> 
A36: =IF(Resultat!A34="","",CONCATENATE("-TEXTE ",Resultat!G34," 0.5 0 ",Resultat!A34)) -> 
A37: =IF(Resultat!A35="","",CONCATENATE("-TEXTE ",Resultat!G35," 0.5 0 ",Resultat!A35)) -> 
A38: =IF(Resultat!A36="","",CONCATENATE("-TEXTE ",Resultat!G36," 0.5 0 ",Resultat!A36)) -> 
A39: =IF(Resultat!A37="","",CONCATENATE("-TEXTE ",Resultat!G37," 0.5 0 ",Resultat!A37)) -> 
A40: =IF(Resultat!A38="","",CONCATENATE("-TEXTE ",Resultat!G38," 0.5 0 ",Resultat!A38)) -> 
A41: =IF(Resultat!A39="","",CONCATENATE("-TEXTE ",Resultat!G39," 0.5 0 ",Resultat!A39)) -> 
A42: =IF(Resultat!A40="","",CONCATENATE("-TEXTE ",Resultat!G40," 0.5 0 ",Resultat!A40)) -> 
A43: =IF(Resultat!A41="","",CONCATENATE("-TEXTE ",Resultat!G41," 0.5 0 ",Resultat!A41)) -> 
A44: =IF(Resultat!A42="","",CONCATENATE("-TEXTE ",Resultat!G42," 0.5 0 ",Resultat!A42)) -> 
A45: =IF(Resultat!A43="","",CONCATENATE("-TEXTE ",Resultat!G43," 0.5 0 ",Resultat!A43)) -> 
A46: =IF(Resultat!A44="","",CONCATENATE("-TEXTE ",Resultat!G44," 0.5 0 ",Resultat!A44)) -> 
A47: =IF(Resultat!A45="","",CONCATENATE("-TEXTE ",Resultat!G45," 0.5 0 ",Resultat!A45)) -> 
A48: =IF(Resultat!A46="","",CONCATENATE("-TEXTE ",Resultat!G46," 0.5 0 ",Resultat!A46)) -> 
A49: =IF(Resultat!A47="","",CONCATENATE("-TEXTE ",Resultat!G47," 0.5 0 ",Resultat!A47)) -> 
A50: =IF(Resultat!A48="","",CONCATENATE("-TEXTE ",Resultat!G48," 0.5 0 ",Resultat!A48)) -> 
A51: =IF(Resultat!A49="","",CONCATENATE("-TEXTE ",Resultat!G49," 0.5 0 ",Resultat!A49)) -> 
A52: =IF(Resultat!A50="","",CONCATENATE("-TEXTE ",Resultat!G50," 0.5 0 ",Resultat!A50)) -> 
A53: =IF(Resultat!A51="","",CONCATENATE("-TEXTE ",Resultat!G51," 0.5 0 ",Resultat!A51)) -> 
A54: =IF(Resultat!A52="","",CONCATENATE("-TEXTE ",Resultat!G52," 0.5 0 ",Resultat!A52)) -> -TEXTE 2502088.47,1201126.32,400.45 0.5 0 22222
A55: -calque ch 0 | B55: rend le calque 0 actif
B56: LAISSER CETTE LIGNE VIDE

Sheet Autocad_Txt_Altitude
A1: -calque E HEPIA_Altitudes | B1: crée le calque HEPIA_Altitudes et le rend actif
A2: -calque CO 7 HEPIA_Altitudes | B2: change la couleur du calque à 7 (blanc/noir)
A3: textstyle standard | B3: rend le style de texte Standard actif
A4: =IF(Resultat!A2="","",CONCATENATE("-TEXTE ",Resultat!H2," 0.5 0 ",TEXT(Resultat!D2,"0.00"))) -> -TEXTE 2502100.50,1201079.50,400.00 0.5 0 400.00
A5: =IF(Resultat!A3="","",CONCATENATE("-TEXTE ",Resultat!H3," 0.5 0 ",TEXT(Resultat!D3,"0.00"))) -> -TEXTE 2502109.30,1201077.88,400.05 0.5 0 400.05
A6: =IF(Resultat!A4="","",CONCATENATE("-TEXTE ",Resultat!H4," 0.5 0 ",TEXT(Resultat!D4,"0.00"))) -> -TEXTE 2502124.20,1201067.25,400.71 0.5 0 400.71
A7: =IF(Resultat!A5="","",CONCATENATE("-TEXTE ",Resultat!H5," 0.5 0 ",TEXT(Resultat!D5,"0.00"))) -> -TEXTE 2502119.52,1201068.85,400.65 0.5 0 400.65
A8: =IF(Resultat!A6="","",CONCATENATE("-TEXTE ",Resultat!H6," 0.5 0 ",TEXT(Resultat!D6,"0.00"))) -> -TEXTE 2502110.63,1201071.85,400.44 0.5 0 400.44
A9: =IF(Resultat!A7="","",CONCATENATE("-TEXTE ",Resultat!H7," 0.5 0 ",TEXT(Resultat!D7,"0.00"))) -> -TEXTE 2502106.26,1201073.07,400.47 0.5 0 400.47
A10: =IF(Resultat!A8="","",CONCATENATE("-TEXTE ",Resultat!H8," 0.5 0 ",TEXT(Resultat!D8,"0.00"))) -> -TEXTE 2502100.65,1201074.59,400.38 0.5 0 400.38
A11: =IF(Resultat!A9="","",CONCATENATE("-TEXTE ",Resultat!H9," 0.5 0 ",TEXT(Resultat!D9,"0.00"))) -> -TEXTE 2502095.88,1201076.16,400.35 0.5 0 400.35
A12: =IF(Resultat!A10="","",CONCATENATE("-TEXTE ",Resultat!H10," 0.5 0 ",TEXT(Resultat!D10,"0.00"))) -> -TEXTE 2502091.37,1201077.49,400.35 0.5 0 400.35
A13: =IF(Resultat!A11="","",CONCATENATE("-TEXTE ",Resultat!H11," 0.5 0 ",TEXT(Resultat!D11,"0.00"))) -> -TEXTE 2502087.85,1201078.64,400.34 0.5 0 400.34
A14: =IF(Resultat!A12="","",CONCATENATE("-TEXTE ",Resultat!H12," 0.5 0 ",TEXT(Resultat!D12,"0.00"))) -> -TEXTE 2502089.64,1201079.12,400.18 0.5 0 400.18
A15: =IF(Resultat!A13="","",CONCATENATE("-TEXTE ",Resultat!H13," 0.5 0 ",TEXT(Resultat!D13,"0.00"))) -> -TEXTE 2502092.34,1201087.18,399.67 0.5 0 399.67
A16: =IF(Resultat!A14="","",CONCATENATE("-TEXTE ",Resultat!H14," 0.5 0 ",TEXT(Resultat!D14,"0.00"))) -> -TEXTE 2502108.36,1201073.92,400.30 0.5 0 400.30
A17: =IF(Resultat!A15="","",CONCATENATE("-TEXTE ",Resultat!H15," 0.5 0 ",TEXT(Resultat!D15,"0.00"))) -> -TEXTE 2502086.41,1201082.04,399.85 0.5 0 399.85
A18: =IF(Resultat!A16="","",CONCATENATE("-TEXTE ",Resultat!H16," 0.5 0 ",TEXT(Resultat!D16,"0.00"))) -> -TEXTE 2502087.14,1201086.33,399.64 0.5 0 399.64
A19: =IF(Resultat!A17="","",CONCATENATE("-TEXTE ",Resultat!H17," 0.5 0 ",TEXT(Resultat!D17,"0.00"))) -> -TEXTE 2502088.18,1201089.06,399.60 0.5 0 399.60
A20: =IF(Resultat!A18="","",CONCATENATE("-TEXTE ",Resultat!H18," 0.5 0 ",TEXT(Resultat!D18,"0.00"))) -> -TEXTE 2502111.56,1201078.94,399.98 0.5 0 399.98
A21: =IF(Resultat!A19="","",CONCATENATE("-TEXTE ",Resultat!H19," 0.5 0 ",TEXT(Resultat!D19,"0.00"))) -> -TEXTE 2502105.17,1201088.93,399.44 0.5 0 399.44
A22: =IF(Resultat!A20="","",CONCATENATE("-TEXTE ",Resultat!H20," 0.5 0 ",TEXT(Resultat!D20,"0.00"))) -> -TEXTE 2502099.59,1201090.97,399.38 0.5 0 399.38
A23: =IF(Resultat!A21="","",CONCATENATE("-TEXTE ",Resultat!H21," 0.5 0 ",TEXT(Resultat!D21,"0.00"))) -> -TEXTE 2502127.76,1201077.49,400.57 0.5 0 400.57
A24: =IF(Resultat!A22="","",CONCATENATE("-TEXTE ",Resultat!H22," 0.5 0 ",TEXT(Resultat!D22,"0.00"))) -> 
A25: =IF(Resultat!A23="","",CONCATENATE("-TEXTE ",Resultat!H23," 0.5 0 ",TEXT(Resultat!D23,"0.00"))) -> 
A26: =IF(Resultat!A24="","",CONCATENATE("-TEXTE ",Resultat!H24," 0.5 0 ",TEXT(Resultat!D24,"0.00"))) -> 
A27: =IF(Resultat!A25="","",CONCATENATE("-TEXTE ",Resultat!H25," 0.5 0 ",TEXT(Resultat!D25,"0.00"))) -> 
A28: =IF(Resultat!A26="","",CONCATENATE("-TEXTE ",Resultat!H26," 0.5 0 ",TEXT(Resultat!D26,"0.00"))) -> 
A29: =IF(Resultat!A27="","",CONCATENATE("-TEXTE ",Resultat!H27," 0.5 0 ",TEXT(Resultat!D27,"0.00"))) -> 
A30: =IF(Resultat!A28="","",CONCATENATE("-TEXTE ",Resultat!H28," 0.5 0 ",TEXT(Resultat!D28,"0.00"))) -> 
A31: =IF(Resultat!A29="","",CONCATENATE("-TEXTE ",Resultat!H29," 0.5 0 ",TEXT(Resultat!D29,"0.00"))) -> 
A32: =IF(Resultat!A30="","",CONCATENATE("-TEXTE ",Resultat!H30," 0.5 0 ",TEXT(Resultat!D30,"0.00"))) -> 
A33: =IF(Resultat!A31="","",CONCATENATE("-TEXTE ",Resultat!H31," 0.5 0 ",TEXT(Resultat!D31,"0.00"))) -> 
A34: =IF(Resultat!A32="","",CONCATENATE("-TEXTE ",Resultat!H32," 0.5 0 ",TEXT(Resultat!D32,"0.00"))) -> 
A35: =IF(Resultat!A33="","",CONCATENATE("-TEXTE ",Resultat!H33," 0.5 0 ",TEXT(Resultat!D33,"0.00"))) -> 
A36: =IF(Resultat!A34="","",CONCATENATE("-TEXTE ",Resultat!H34," 0.5 0 ",TEXT(Resultat!D34,"0.00"))) -> 
A37: =IF(Resultat!A35="","",CONCATENATE("-TEXTE ",Resultat!H35," 0.5 0 ",TEXT(Resultat!D35,"0.00"))) -> 
A38: =IF(Resultat!A36="","",CONCATENATE("-TEXTE ",Resultat!H36," 0.5 0 ",TEXT(Resultat!D36,"0.00"))) -> 
A39: =IF(Resultat!A37="","",CONCATENATE("-TEXTE ",Resultat!H37," 0.5 0 ",TEXT(Resultat!D37,"0.00"))) -> 
A40: =IF(Resultat!A38="","",CONCATENATE("-TEXTE ",Resultat!H38," 0.5 0 ",TEXT(Resultat!D38,"0.00"))) -> 
A41: =IF(Resultat!A39="","",CONCATENATE("-TEXTE ",Resultat!H39," 0.5 0 ",TEXT(Resultat!D39,"0.00"))) -> 
A42: =IF(Resultat!A40="","",CONCATENATE("-TEXTE ",Resultat!H40," 0.5 0 ",TEXT(Resultat!D40,"0.00"))) -> 
A43: =IF(Resultat!A41="","",CONCATENATE("-TEXTE ",Resultat!H41," 0.5 0 ",TEXT(Resultat!D41,"0.00"))) -> 
A44: =IF(Resultat!A42="","",CONCATENATE("-TEXTE ",Resultat!H42," 0.5 0 ",TEXT(Resultat!D42,"0.00"))) -> 
A45: =IF(Resultat!A43="","",CONCATENATE("-TEXTE ",Resultat!H43," 0.5 0 ",TEXT(Resultat!D43,"0.00"))) -> 
A46: =IF(Resultat!A44="","",CONCATENATE("-TEXTE ",Resultat!H44," 0.5 0 ",TEXT(Resultat!D44,"0.00"))) -> 
A47: =IF(Resultat!A45="","",CONCATENATE("-TEXTE ",Resultat!H45," 0.5 0 ",TEXT(Resultat!D45,"0.00"))) -> 
A48: =IF(Resultat!A46="","",CONCATENATE("-TEXTE ",Resultat!H46," 0.5 0 ",TEXT(Resultat!D46,"0.00"))) -> 
A49: =IF(Resultat!A47="","",CONCATENATE("-TEXTE ",Resultat!H47," 0.5 0 ",TEXT(Resultat!D47,"0.00"))) -> 
A50: =IF(Resultat!A48="","",CONCATENATE("-TEXTE ",Resultat!H48," 0.5 0 ",TEXT(Resultat!D48,"0.00"))) -> 
A51: =IF(Resultat!A49="","",CONCATENATE("-TEXTE ",Resultat!H49," 0.5 0 ",TEXT(Resultat!D49,"0.00"))) -> 
A52: =IF(Resultat!A50="","",CONCATENATE("-TEXTE ",Resultat!H50," 0.5 0 ",TEXT(Resultat!D50,"0.00"))) -> 
A53: =IF(Resultat!A51="","",CONCATENATE("-TEXTE ",Resultat!H51," 0.5 0 ",TEXT(Resultat!D51,"0.00"))) -> 
A54: =IF(Resultat!A52="","",CONCATENATE("-TEXTE ",Resultat!H52," 0.5 0 ",TEXT(Resultat!D52,"0.00"))) -> -TEXTE 2502088.47,1201125.32,400.45 0.5 0 400.45
A55: -calque ch 0 | B55: rend le calque 0 actif
B56: LAISSER CETTE LIGNE VIDE

Sheet Script
A1: données de base | D1: script
A2: -calque E HEPIA_Altitudes | B2: crée le calque HEPIA_Altitudes et le rend actif | D2: -calque E HEPIA_Altitudes
A3: -calque CO 7 HEPIA_Altitudes | B3: change la couleur du calque à 7 (blanc/noir) | D3: -calque CO 7 HEPIA_Altitudes
A4: textstyle standard | B4: rend le style de texte Standard actif | D4: textstyle standard
A5: =Autocad_Txt_Altitude!A4 -> -TEXTE 2502100.50,1201079.50,400.00 0.5 0 400.00 | B5: insère les altitudes des points | D5: -TEXTE 2502100.50,1201079.50,400.00 0.5 0 400.00
A6: =Autocad_Txt_Altitude!A5 -> -TEXTE 2502109.30,1201077.88,400.05 0.5 0 400.05 | D6: -TEXTE 2502109.30,1201077.88,400.05 0.5 0 400.05
A7: =Autocad_Txt_Altitude!A6 -> -TEXTE 2502124.20,1201067.25,400.71 0.5 0 400.71 | D7: -TEXTE 2502124.20,1201067.25,400.71 0.5 0 400.71
A8: =Autocad_Txt_Altitude!A7 -> -TEXTE 2502119.52,1201068.85,400.65 0.5 0 400.65 | D8: -TEXTE 2502119.52,1201068.85,400.65 0.5 0 400.65
A9: =Autocad_Txt_Altitude!A8 -> -TEXTE 2502110.63,1201071.85,400.44 0.5 0 400.44 | D9: -TEXTE 2502110.63,1201071.85,400.44 0.5 0 400.44
A10: =Autocad_Txt_Altitude!A9 -> -TEXTE 2502106.26,1201073.07,400.47 0.5 0 400.47 | D10: -TEXTE 2502106.26,1201073.07,400.47 0.5 0 400.47
A11: =Autocad_Txt_Altitude!A10 -> -TEXTE 2502100.65,1201074.59,400.38 0.5 0 400.38 | D11: -TEXTE 2502100.65,1201074.59,400.38 0.5 0 400.38
A12: =Autocad_Txt_Altitude!A11 -> -TEXTE 2502095.88,1201076.16,400.35 0.5 0 400.35 | D12: -TEXTE 2502095.88,1201076.16,400.35 0.5 0 400.35
A13: =Autocad_Txt_Altitude!A12 -> -TEXTE 2502091.37,1201077.49,400.35 0.5 0 400.35 | D13: -TEXTE 2502091.37,1201077.49,400.35 0.5 0 400.35
A14: =Autocad_Txt_Altitude!A13 -> -TEXTE 2502087.85,1201078.64,400.34 0.5 0 400.34 | D14: -TEXTE 2502087.85,1201078.64,400.34 0.5 0 400.34
A15: =Autocad_Txt_Altitude!A14 -> -TEXTE 2502089.64,1201079.12,400.18 0.5 0 400.18 | D15: -TEXTE 2502089.64,1201079.12,400.18 0.5 0 400.18
A16: =Autocad_Txt_Altitude!A15 -> -TEXTE 2502092.34,1201087.18,399.67 0.5 0 399.67 | D16: -TEXTE 2502092.34,1201087.18,399.67 0.5 0 399.67
A17: =Autocad_Txt_Altitude!A16 -> -TEXTE 2502108.36,1201073.92,400.30 0.5 0 400.30 | D17: -TEXTE 2502108.36,1201073.92,400.30 0.5 0 400.30
A18: =Autocad_Txt_Altitude!A17 -> -TEXTE 2502086.41,1201082.04,399.85 0.5 0 399.85 | D18: -TEXTE 2502086.41,1201082.04,399.85 0.5 0 399.85
A19: =Autocad_Txt_Altitude!A18 -> -TEXTE 2502087.14,1201086.33,399.64 0.5 0 399.64 | D19: -TEXTE 2502087.14,1201086.33,399.64 0.5 0 399.64
A20: =Autocad_Txt_Altitude!A19 -> -TEXTE 2502088.18,1201089.06,399.60 0.5 0 399.60 | D20: -TEXTE 2502088.18,1201089.06,399.60 0.5 0 399.60
A21: =Autocad_Txt_Altitude!A20 -> -TEXTE 2502111.56,1201078.94,399.98 0.5 0 399.98 | D21: -TEXTE 2502111.56,1201078.94,399.98 0.5 0 399.98
A22: =Autocad_Txt_Altitude!A21 -> -TEXTE 2502105.17,1201088.93,399.44 0.5 0 399.44 | D22: -TEXTE 2502105.17,1201088.93,399.44 0.5 0 399.44
A23: =Autocad_Txt_Altitude!A22 -> -TEXTE 2502099.59,1201090.97,399.38 0.5 0 399.38 | D23: -TEXTE 2502099.59,1201090.97,399.38 0.5 0 399.38
A24: =Autocad_Txt_Altitude!A23 -> -TEXTE 2502127.76,1201077.49,400.57 0.5 0 400.57 | D24: -TEXTE 2502127.76,1201077.49,400.57 0.5 0 400.57
A25: =Autocad_Txt_Altitude!A24 -> 
A26: =Autocad_Txt_Altitude!A25 -> 
A27: =Autocad_Txt_Altitude!A26 -> 
A28: =Autocad_Txt_Altitude!A27 -> 
A29: =Autocad_Txt_Altitude!A28 -> 
A30: =Autocad_Txt_Altitude!A29 -> 
A31: =Autocad_Txt_Altitude!A30 -> 
A32: =Autocad_Txt_Altitude!A31 -> 
A33: =Autocad_Txt_Altitude!A32 -> 
A34: =Autocad_Txt_Altitude!A33 -> 
A35: =Autocad_Txt_Altitude!A34 -> 
A36: =Autocad_Txt_Altitude!A35 -> 
A37: =Autocad_Txt_Altitude!A36 -> 
A38: =Autocad_Txt_Altitude!A37 -> 
A39: =Autocad_Txt_Altitude!A38 -> 
A40: =Autocad_Txt_Altitude!A39 -> 
A41: =Autocad_Txt_Altitude!A40 -> 
A42: =Autocad_Txt_Altitude!A41 -> 
A43: =Autocad_Txt_Altitude!A42 -> 
A44: =Autocad_Txt_Altitude!A43 -> 
A45: =Autocad_Txt_Altitude!A44 -> 
A46: =Autocad_Txt_Altitude!A45 -> 
A47: =Autocad_Txt_Altitude!A46 -> 
A48: =Autocad_Txt_Altitude!A47 -> 
A49: =Autocad_Txt_Altitude!A48 -> 
A50: =Autocad_Txt_Altitude!A49 -> 
A51: =Autocad_Txt_Altitude!A50 -> 
A52: =Autocad_Txt_Altitude!A51 -> 
A53: =Autocad_Txt_Altitude!A52 -> 
A54: =Autocad_Txt_Altitude!A53 -> 
A55: =Autocad_Txt_Altitude!A54 -> -TEXTE 2502088.47,1201125.32,400.45 0.5 0 400.45 | D55: -TEXTE 2502088.47,1201125.32,400.45 0.5 0 400.45
A56: -calque ch 0 | B56: rend le calque 0 actif | D56: -calque ch 0
A57: -calque E HEPIA_NoPts | B57: crée le calque HEPIA_NoPts et le rend actif | D57: -calque E HEPIA_NoPts
A58: -calque CO 7 HEPIA_NoPts | B58: change la couleur du calque à 7 (blanc/noir) | D58: -calque CO 7 HEPIA_NoPts
A59: textstyle standard | B59: rend le style de texte Standard actif | D59: textstyle standard
A60: =Autocad_Num!A4 -> -TEXTE 2502100.50,1201080.50,400.00 0.5 0 8031 | B60: insère le numéros de points | D60: -TEXTE 2502100.50,1201080.50,400.00 0.5 0 8031
A61: =Autocad_Num!A5 -> -TEXTE 2502109.30,1201078.88,400.05 0.5 0 8062 | D61: -TEXTE 2502109.30,1201078.88,400.05 0.5 0 8062
A62: =Autocad_Num!A6 -> -TEXTE 2502124.20,1201068.25,400.71 0.5 0 44 | D62: -TEXTE 2502124.20,1201068.25,400.71 0.5 0 44
A63: =Autocad_Num!A7 -> -TEXTE 2502119.52,1201069.85,400.65 0.5 0 45 | D63: -TEXTE 2502119.52,1201069.85,400.65 0.5 0 45
A64: =Autocad_Num!A8 -> -TEXTE 2502110.63,1201072.85,400.44 0.5 0 46 | D64: -TEXTE 2502110.63,1201072.85,400.44 0.5 0 46
A65: =Autocad_Num!A9 -> -TEXTE 2502106.26,1201074.07,400.47 0.5 0 47 | D65: -TEXTE 2502106.26,1201074.07,400.47 0.5 0 47
A66: =Autocad_Num!A10 -> -TEXTE 2502100.65,1201075.59,400.38 0.5 0 48 | D66: -TEXTE 2502100.65,1201075.59,400.38 0.5 0 48
A67: =Autocad_Num!A11 -> -TEXTE 2502095.88,1201077.16,400.35 0.5 0 49 | D67: -TEXTE 2502095.88,1201077.16,400.35 0.5 0 49
A68: =Autocad_Num!A12 -> -TEXTE 2502091.37,1201078.49,400.35 0.5 0 50 | D68: -TEXTE 2502091.37,1201078.49,400.35 0.5 0 50
A69: =Autocad_Num!A13 -> -TEXTE 2502087.85,1201079.64,400.34 0.5 0 51 | D69: -TEXTE 2502087.85,1201079.64,400.34 0.5 0 51
A70: =Autocad_Num!A14 -> -TEXTE 2502089.64,1201080.12,400.18 0.5 0 52 | D70: -TEXTE 2502089.64,1201080.12,400.18 0.5 0 52
A71: =Autocad_Num!A15 -> -TEXTE 2502092.34,1201088.18,399.67 0.5 0 53 | D71: -TEXTE 2502092.34,1201088.18,399.67 0.5 0 53
A72: =Autocad_Num!A16 -> -TEXTE 2502108.36,1201074.92,400.30 0.5 0 54 | D72: -TEXTE 2502108.36,1201074.92,400.30 0.5 0 54
A73: =Autocad_Num!A17 -> -TEXTE 2502086.41,1201083.04,399.85 0.5 0 55 | D73: -TEXTE 2502086.41,1201083.04,399.85 0.5 0 55
A74: =Autocad_Num!A18 -> -TEXTE 2502087.14,1201087.33,399.64 0.5 0 56 | D74: -TEXTE 2502087.14,1201087.33,399.64 0.5 0 56
A75: =Autocad_Num!A19 -> -TEXTE 2502088.18,1201090.06,399.60 0.5 0 57 | D75: -TEXTE 2502088.18,1201090.06,399.60 0.5 0 57
A76: =Autocad_Num!A20 -> -TEXTE 2502111.56,1201079.94,399.98 0.5 0 58 | D76: -TEXTE 2502111.56,1201079.94,399.98 0.5 0 58
A77: =Autocad_Num!A21 -> -TEXTE 2502105.17,1201089.93,399.44 0.5 0 59 | D77: -TEXTE 2502105.17,1201089.93,399.44 0.5 0 59
A78: =Autocad_Num!A22 -> -TEXTE 2502099.59,1201091.97,399.38 0.5 0 60 | D78: -TEXTE 2502099.59,1201091.97,399.38 0.5 0 60
A79: =Autocad_Num!A23 -> -TEXTE 2502127.76,1201078.49,400.57 0.5 0 61 | D79: -TEXTE 2502127.76,1201078.49,400.57 0.5 0 61
A80: =Autocad_Num!A24 -> 
A81: =Autocad_Num!A25 -> 
A82: =Autocad_Num!A26 -> 
A83: =Autocad_Num!A27 -> 
A84: =Autocad_Num!A28 -> 
A85: =Autocad_Num!A29 -> 
A86: =Autocad_Num!A30 -> 
A87: =Autocad_Num!A31 -> 
A88: =Autocad_Num!A32 -> 
A89: =Autocad_Num!A33 -> 
A90: =Autocad_Num!A34 -> 
A91: =Autocad_Num!A35 -> 
A92: =Autocad_Num!A36 -> 
A93: =Autocad_Num!A37 -> 
A94: =Autocad_Num!A38 -> 
A95: =Autocad_Num!A39 -> 
A96: =Autocad_Num!A40 -> 
A97: =Autocad_Num!A41 -> 
A98: =Autocad_Num!A42 -> 
A99: =Autocad_Num!A43 -> 
A100: =Autocad_Num!A44 -> 
A101: =Autocad_Num!A45 -> 
A102: =Autocad_Num!A46 -> 
A103: =Autocad_Num!A47 -> 
A104: =Autocad_Num!A48 -> 
A105: =Autocad_Num!A49 -> 
A106: =Autocad_Num!A50 -> 
A107: =Autocad_Num!A51 -> 
A108: =Autocad_Num!A52 -> 
A109: =Autocad_Num!A53 -> 
A110: =Autocad_Num!A54 -> -TEXTE 2502088.47,1201126.32,400.45 0.5 0 22222 | D110: -TEXTE 2502088.47,1201126.32,400.45 0.5 0 22222
A111: -calque ch 0 | B111: rend le calque 0 actif | D111: -calque ch 0
A112: -calque E HEPIA_POINTS | B112: crée le calque HEPIA_POINT et le rend actif | D112: -calque E HEPIA_POINTS
A113: -calque CO 140 HEPIA_POINTS | B113: change la couleur du calque à 140 | D113: -calque CO 140 HEPIA_POINTS
A114: pdmode 3 | B114: affiche des croix comme symbole de points | D114: pdmode 3
A115: pdsize 0.5 | B115: dimensionne les symboles de points à 0.5m | D115: pdsize 0.5
A116: =Autocad_Pts!A5 -> POINT 2502100.00,1201080.00,400.00 | B116: insère les points | D116: POINT 2502100.00,1201080.00,400.00
A117: =Autocad_Pts!A6 -> POINT 2502108.80,1201078.38,400.05 | D117: POINT 2502108.80,1201078.38,400.05
A118: =Autocad_Pts!A7 -> POINT 2502123.70,1201067.75,400.71 | D118: POINT 2502123.70,1201067.75,400.71
A119: =Autocad_Pts!A8 -> POINT 2502119.02,1201069.35,400.65 | D119: POINT 2502119.02,1201069.35,400.65
A120: =Autocad_Pts!A9 -> POINT 2502110.13,1201072.35,400.44 | D120: POINT 2502110.13,1201072.35,400.44
A121: =Autocad_Pts!A10 -> POINT 2502105.76,1201073.57,400.47 | D121: POINT 2502105.76,1201073.57,400.47
A122: =Autocad_Pts!A11 -> POINT 2502100.15,1201075.09,400.38 | D122: POINT 2502100.15,1201075.09,400.38
A123: =Autocad_Pts!A12 -> POINT 2502095.38,1201076.66,400.35 | D123: POINT 2502095.38,1201076.66,400.35
A124: =Autocad_Pts!A13 -> POINT 2502090.87,1201077.99,400.35 | D124: POINT 2502090.87,1201077.99,400.35
A125: =Autocad_Pts!A14 -> POINT 2502087.35,1201079.14,400.34 | D125: POINT 2502087.35,1201079.14,400.34
A126: =Autocad_Pts!A15 -> POINT 2502089.14,1201079.62,400.18 | D126: POINT 2502089.14,1201079.62,400.18
A127: =Autocad_Pts!A16 -> POINT 2502091.84,1201087.68,399.67 | D127: POINT 2502091.84,1201087.68,399.67
A128: =Autocad_Pts!A17 -> POINT 2502107.86,1201074.42,400.30 | D128: POINT 2502107.86,1201074.42,400.30
A129: =Autocad_Pts!A18 -> POINT 2502085.91,1201082.54,399.85 | D129: POINT 2502085.91,1201082.54,399.85
A130: =Autocad_Pts!A19 -> POINT 2502086.64,1201086.83,399.64 | D130: POINT 2502086.64,1201086.83,399.64
A131: =Autocad_Pts!A20 -> POINT 2502087.68,1201089.56,399.60 | D131: POINT 2502087.68,1201089.56,399.60
A132: =Autocad_Pts!A21 -> POINT 2502111.06,1201079.44,399.98 | D132: POINT 2502111.06,1201079.44,399.98
A133: =Autocad_Pts!A22 -> POINT 2502104.67,1201089.43,399.44 | D133: POINT 2502104.67,1201089.43,399.44
A134: =Autocad_Pts!A23 -> POINT 2502099.09,1201091.47,399.38 | D134: POINT 2502099.09,1201091.47,399.38
A135: =Autocad_Pts!A24 -> POINT 2502127.26,1201077.99,400.57 | D135: POINT 2502127.26,1201077.99,400.57
A136: =Autocad_Pts!A25 -> 
A137: =Autocad_Pts!A26 -> 
A138: =Autocad_Pts!A27 -> 
A139: =Autocad_Pts!A28 -> 
A140: =Autocad_Pts!A29 -> 
A141: =Autocad_Pts!A30 -> 
A142: =Autocad_Pts!A31 -> 
A143: =Autocad_Pts!A32 -> 
A144: =Autocad_Pts!A33 -> 
A145: =Autocad_Pts!A34 -> 
A146: =Autocad_Pts!A35 -> 
A147: =Autocad_Pts!A36 -> 
A148: =Autocad_Pts!A37 -> 
A149: =Autocad_Pts!A38 -> 
A150: =Autocad_Pts!A39 -> 
A151: =Autocad_Pts!A40 -> 
A152: =Autocad_Pts!A41 -> 
A153: =Autocad_Pts!A42 -> 
A154: =Autocad_Pts!A43 -> 
A155: =Autocad_Pts!A44 -> 
A156: =Autocad_Pts!A45 -> 
A157: =Autocad_Pts!A46 -> 
A158: =Autocad_Pts!A47 -> 
A159: =Autocad_Pts!A48 -> 
A160: =Autocad_Pts!A49 -> 
A161: =Autocad_Pts!A50 -> 
A162: =Autocad_Pts!A51 -> 
A163: =Autocad_Pts!A52 -> 
A164: =Autocad_Pts!A53 -> 
A165: =Autocad_Pts!A54 -> 
A166: =Autocad_Pts!A55 -> POINT 2502087.97,1201125.82,400.45 | D166: POINT 2502087.97,1201125.82,400.45
A167: -calque ch 0 | B167: rend le calque 0 actif | D167: -calque ch 0
A168: zoom et | B168: effectue un zoom étendu | D168: zoom et
B169: LAISSER CETTE LIGNE VIDE

Sheet Protocole de terrain vierge (2)
C1: Relevé des points au niveau, en station libre vers deux points connus.
B3: Affaire: | E3: Opérateurs
B5: Date | E5: Instrument
C6: Choisir: Deg / Grad
B7: Unité
A9: Li | B9: Numéro | C9: Direction | D9: Bas | E9: Milieu | F9: Haut | G9: Moy | H9: Fiab | I9: O b s e r v a t i o n s
A10: 1 | I10: < Pt connu
A11: 2 | I11: < Pt connu
A12: 3 | I12: < Pt connu
A13: 4
A14: 5
A15: 6
A16: 7
A17: 8
A18: 9
A19: 10
A20: 11
A21: 12
A22: 13
A23: 14
A24: 15
A25: 16
A26: 17
A27: 18
A28: 19
A29: 20
A30: 21
A31: 22
A32: 23
A33: 24
A34: 25
A35: 26
A36: 27
A37: 28
A38: 29
A39: 30
A40: 31
A41: 32
A42: 33
A43: 34
A44: 35
A45: 36
A46: 37
A47: 38
A48: 39
A49: 40
A50: 41

Sheet Protocole de terrain vierge
D1: Relevé des points au niveau, en station libre vers deux points connus.
B3: Affaire: | E3: Opérateurs
B5: Date | E5: Instrument
C6: Choisir: Deg / Grad
B7: Unité
A9: Li | B9: Numéro | C9: Direction | D9: Bas | E9: Milieu | F9: Haut | H9: O b s e r v a t i o n s
A10: 1 | G10: < Pt connu
A11: 2 | G11: < Pt connu
A12: 3 | G12: < Pt connu
A13: 4
A14: 5
A15: 6
A16: 7
A17: 8
A18: 9
A19: 10
A20: 11
A21: 12
A22: 13
A23: 14
A24: 15
A25: 16
A26: 17
A27: 18
A28: 19
A29: 20
A30: 21
A31: 22
A32: 23
A33: 24
A34: 25
A35: 26
A36: 27
A37: 28
A38: 29
A39: 30
A40: 31
A41: 32
A42: 33
A43: 34
A44: 35
A45: 36
A46: 37
A47: 38
A48: 39
A49: 40
A50: 41
A51: 42
A52: 43
A53: 44
A54: 45
A55: 46
A56: 47
A57: 48
A58: 49
A59: 50
A60: 51

Sheet Protocole de terrain
D1: Relevé des points au niveau, en station libre vers deux points connus.
B3: Affaire: | E3: Opérateurs
B5: Date | E5: Instrument
C6: Choisir: Deg / Grad
B7: Unité
A9: Li | B9: Numéro | C9: Direction | D9: Bas | E9: Milieu | F9: Haut | H9: O b s e r v a t i o n s
A10: 1 | B10: 8001 | C10: 0 | D10: 0613 | E10: 0690 | F10: 0767 | G10: < Pt connu | H10: borne
A11: 2 | B11: 8016 | C11: 104.6 | D11: 1582 | E11: 1690 | F11: 1797 | G11: < Pt connu | H11: borne
A12: 3 | B12: 8012 | C12: 164.5 | D12: 2565 | E12: 2650 | F12: 2733 | G12: < Pt connu | H12: borne
A13: 4 | B13: 2 | C13: 376.1 | D13: 808 | E13: 0850 | F13: 0891 | H13: arbre
A14: 5 | B14: 3 | C14: 345.3 | D14: 970 | E14: 1000 | F14: 1030 | H14: arbre
A15: 6 | B15: 4 | C15: 338 | D15: 1193 | E15: 1250 | F15: 1307 | H15: arbre
A16: 7 | B16: 5 | C16: 335 | D16: 1081 | E16: 1100 | F16: 1119 | H16: mur en bas
A17: 8 | B17: 6 | C17: 323.5 | D17: 1327 | E17: 1400 | F17: 1473 | H17: mur en bas
A18: 9 | B18: 7 | C18: 299.1 | D18: 2959 | E18: 3080 | F18: 3201 | H18: borne
A19: 10 | B19: 8 | C19: 294.5 | D19: 2616 | E19: 2700 | F19: 2784 | H19: arbre
A20: 11 | B20: 9 | C20: 288 | D20: 1272 | E20: 1300 | F20: 1328 | H20: mur en bas
A21: 12 | B21: 10 | C21: 265.2 | D21: 0988 | E21: 1000 | F21: 1012 | H21: place
A22: 13 | B22: 11 | C22: 172 | D22: 2363 | E22: 2450 | F22: 2537 | H22: arbre
A23: 14 | B23: 13 | C23: 160.2 | D23: 2391 | E23: 2500 | F23: 2609 | H23: arbre
A24: 15 | B24: 14 | C24: 154.3 | D24: 1787 | E24: 1850 | F24: 1912 | H24: batiment
A25: 16 | B25: 15 | C25: 109 | D25: 1796 | E25: 1850 | F25: 1904 | H25: batiment
A26: 17 | B26: 17 | C26: 92.8 | D26: 1336 | E26: 1400 | F26: 1464 | H26: arbre
A27: 18 | B27: 18 | C27: 56.5 | D27: 0772 | E27: 0800 | F27: 0828 | H27: place
A28: 19 | B28: 19 | C28: 48.7 | D28: 0719 | E28: 0780 | F28: 0840 | H28: entree
A29: 20 | B29: 20 | C29: 38 | D29: 0719 | E29: 0780 | F29: 0840 | H29: entree
A30: 21 | B30: 21 | C30: 255.1 | D30: 2485 | E30: 2550 | F30: 2615 | H30: terrain
A31: 22 | B31: 22 | C31: 214.9 | D31: 2535 | E31: 2600 | F31: 2664 | H31: terrain
A32: 23
A33: 24
A34: 25
A35: 26
A36: 27
A37: 28
A38: 29
A39: 30
A40: 31
A41: 32
A42: 33
A43: 34
A44: 35
A45: 36
A46: 37
A47: 38
A48: 39
A49: 40
A50: 41
A51: 42
A52: 43
A53: 44
A54: 45
A55: 46
A56: 47
A57: 48
A58: 49
A59: 50
A60: 51
